{"text_format":"1","workbook":"xlsx","n_sheets":3,"sheets":["فاتورة مشتريات","المشتريات","إجمالي حساب الفواتير"],"not_rendered":{"charts":0,"images":0,"macros":1,"external_links":1,"defined_names":0,"comments":0,"pivot_tables":0},"unopened":[],"bounds":{"document_bytes":16777216,"sheet_cells":100000,"rows_first":2000,"rows_last":500,"rows_between":2000,"halvings":0,"cell_chars":16384,"cell_head_chars":4096},"cells_cut":0,"cells_raw":0,"read":"whole","date_system":"1900"}

{"sheet":"فاتورة مشتريات","index":0,"n_rows":33,"n_cols":6,"rows_kept":33,"cut":false,"hidden":false,"merged":[[28,3,28,4],[29,3,29,4],[30,3,30,4],[31,3,31,4],[32,3,32,4]]}
[]
["رقم الفاتورة:"]
["اسم المورد:"]
["تاريخ الفاتورة"]
[]
["م","البيـــــــــــــــــان","الوحدة","الكمية","السعر","المبلغ"]
[{"$f":"IF(B7=\"\",\"\",1)","v":""}]
[{"$f":"IF(B8=\"\",\"\",A7+1)","v":""}]
[{"$f":"IF(B9=\"\",\"\",A8+1)","v":""}]
["",null,null,null,null,{"$f":"IF(D10=\"\",\"\",D10*E10)","v":""}]
["",null,null,null,null,""]
["",null,null,null,null,""]
["",null,null,null,null,""]
["",null,null,null,null,""]
["",null,null,null,null,""]
["",null,null,null,null,""]
["",null,null,null,null,""]
["",null,null,null,null,""]
["",null,null,null,null,""]
["",null,null,null,null,""]
["",null,null,null,null,""]
["",null,null,null,null,""]
["",null,null,null,null,""]
["",null,null,null,null,""]
["",null,null,null,null,""]
["",null,null,null,null,""]
["",null,null,null,null,""]
[]
[null,null,null,"إجمالي الفاتورة:",null,{"$f":"SUM(F7:F27)","v":0}]
[null,null,null,"الخصــــــــــــم:",null,0]
[null,null,null,"بعد الخصــــــم:",null,{"$f":"SUM(F29-F30)","v":0}]
[null,null,null,"الدفعـــــــــــــــة:",null,50]
[null,null,null,"المبلــغ المتبقي:",null,{"$f":"SUM(F31-F32)","v":-50}]

{"sheet":"المشتريات","index":1,"n_rows":2,"n_cols":8,"rows_kept":2,"cut":false,"hidden":false,"merged":[]}
[]
["رقم الفاتورة","اسم المورد","تاريخ الفاتورة","البيان","الوحدة","الكمية","السعر","المبلغ"]

{"sheet":"إجمالي حساب الفواتير","index":2,"n_rows":2,"n_cols":9,"rows_kept":2,"cut":false,"hidden":false,"merged":[]}
[]
["رقم الفاتورة","اسم المورد","تاريخ الفاتورة","البيان","إجمالي الفاتورة","الخصم","بعد الخصم","الدفعة","المتبقي"]